bitfinex-derivatives/quotes_BNBF0:USTF0_20250115
["timestamp","ask_amount","ask_price","bid_price","bid_amount"]
[1736909659256,0.26332443,698.54,697.1,0.28690288]
[1736909659557,0.26332443,698.53,697.1,0.28690288]
[1736909659757,0.26332443,698.52,697.1,0.28690288]
[1736909660052,0.26332443,698.51,697.1,0.28690288]
[1736909660257,0.26332471,698.5,697.1,0.28690288]
[1736909660451,0.28627046,698.64,697.1,0.28690288]
[1736909660654,0.26332452,698.63,697.1,0.28690288]
[1736909661159,0.26332959,698.62,697.1,0.28690288]
[1736909661357,0.54961235,698.61,697.1,0.28690288]
[1736909661558,0.54961644,698.6,697.1,0.28690288]
[1736909661756,0.54962054,698.59,697.11,1.07433152]
[1736909661955,0.54962464,698.58,697.11,1.07433152]
[1736909662150,0.26332959,698.57,697.11,1.07433152]
[1736909662853,0.26332959,698.57,697.11,0.892]
[1736909663055,0.28629505,698.58,697.11,0.892]
[1736909663256,0.26332921,698.57,697.11,0.892]
[1736909664853,0.54964689,698.56,697.11,0.892]
[1736909665058,0.28630735,698.55,697.11,0.892]
[1736909675264,0.26337063,698.54,697.11,0.892]
[1736909676064,0.28631554,698.53,697.11,0.892]
[1736909676265,0.26337063,698.52,697.11,0.892]
[1736909676466,0.28632374,698.51,697.11,0.892]
[1736909676665,0.26337063,698.5,697.11,0.892]
[1736909676865,0.28633194,698.49,697.11,0.892]
[1736909677065,0.26337063,698.48,697.11,0.892]
[1736909677966,1.35148469,698.47,697.11,0.892]
[1736909678166,0.26337063,698.46,697.11,0.892]
[1736909678961,1.06514455,698.44,697.11,0.892]
[1736909679165,0.26337063,698.43,697.11,0.892]
[1736909679766,0.26337077,698.42,697.11,0.892]
[1736909679969,0.26337077,698.41,697.11,0.892]
[1736909680269,0.26337077,698.4,697.11,0.892]
[1736909680466,0.26337077,698.39,697.11,0.892]
[1736909680764,0.26337077,698.38,697.11,0.892]
[1736909681064,0.26337077,698.37,697.11,0.892]
[1736909681268,0.26337077,698.36,697.11,0.892]
[1736909681464,0.26337077,698.35,697.11,0.892]
[1736909681673,0.26337077,698.34,697.11,0.892]
[1736909681873,0.26337077,698.33,697.11,0.892]
[1736909682074,0.26337077,698.32,697.11,0.892]
[1736909682274,0.28634014,698.47,697.11,0.892]
[1736909682571,0.26337578,698.46,697.11,0.892]
[1736909683867,0.26342929,698.45,697.11,0.892]
[1736909684072,0.28634014,698.47,697.11,0.892]
[1736909691478,0.26346288,698.46,697.11,0.892]
[1736909694279,0.28635244,698.44,697.11,0.892]
[1736909694579,0.26346288,698.43,697.11,0.892]
[1736909694980,0.28636474,698.41,697.11,0.892]
[1736909695179,0.26346288,698.4,697.11,0.892]
[1736909695479,0.28637704,698.38,697.11,0.892]
[1736909695778,0.26346288,698.37,697.11,0.892]
[1736909696176,0.54985762,698.36,697.11,0.892]
[1736909696377,0.54986172,698.35,697.11,0.892]
[1736909696577,0.54986582,698.34,697.11,0.892]
[1736909696773,0.54986992,698.33,697.11,0.892]
[1736909696975,0.54987402,698.32,697.11,0.892]
[1736909697175,0.54987813,698.31,697.11,0.892]
[1736909697380,0.54988223,698.3,697.11,0.892]
[1736909697575,0.54988633,698.29,697.11,0.892]
[1736909697779,0.54989043,698.28,697.11,0.892]
[1736909697981,0.54989453,698.27,697.11,0.892]
[1736909698279,0.26347238,698.26,697.11,0.892]
[1736909698579,0.28643036,698.25,697.11,0.892]
[1736909698780,0.26346719,698.24,697.11,0.892]
[1736909698982,0.28643856,698.23,697.11,0.892]
[1736909699186,0.26346719,698.22,697.11,0.892]
[1736909699379,0.28644677,698.21,697.11,0.892]
[1736909699980,0.26347084,698.2,697.11,0.892]
[1736909700179,0.28644677,698.21,697.11,0.892]
[1736909700180,0.28645497,698.19,697.11,0.892]
[1736909701781,0.26345283,698.18,697.11,0.892]
[1736909703481,0.28645497,698.19,697.11,0.892]
[1736909703681,0.26347008,698.18,697.11,0.892]
[1736909709784,0.26344897,698.17,697.11,0.892]
[1736909709981,0.26344897,698.16,697.11,0.892]
[1736909710186,0.26344897,698.15,697.11,0.892]
[1736909710381,0.28645497,698.19,697.11,0.892]
[1736909710382,0.26344897,698.14,697.11,0.892]
[1736909710581,0.26344897,698.13,697.11,0.892]
[1736909710785,0.26344897,698.12,697.11,0.892]
[1736909710986,0.28645497,698.19,697.11,0.892]
[1736909711183,0.2634436,698.18,697.11,0.892]
[1736909711885,0.28645497,698.19,697.11,0.892]
[1736909747811,1.34891135,698.19,697.11,0.892]
[1736909749020,1.06245638,698.18,697.11,0.892]
[1736909749717,1.34891135,698.19,697.11,0.892]
[1736909751013,0.28645497,698.19,697.11,0.892]
[1736909752617,0.26345374,698.18,697.11,0.892]
[1736909753016,0.26345441,698.17,697.11,0.892]
[1736909753216,0.26345441,698.16,697.11,0.892]
[1736909753518,0.26345441,698.15,697.11,0.892]
[1736909753711,0.26345441,698.14,697.11,0.892]
[1736909753916,0.26345859,698.13,697.11,0.892]
[1736909754111,0.26345859,698.12,697.11,0.892]
[1736909754315,1.06245638,698.16,697.11,0.892]
[1736909754517,0.26345476,698.15,697.11,0.892]
[1736909755618,1.06245638,698.16,697.11,0.892]
[1736909755818,0.26345115,698.15,697.11,0.892]
[1736909757117,1.06245638,698.11,697.11,0.892]
[1736909757314,0.26345115,698.1,697.11,0.892]
[1736909757818,1.06245638,698.11,697.11,0.892]
[1736909758017,1.06245638,698.08,697.11,0.892]
[1736909758918,0.28645497,698.19,697.11,0.892]
[1736909776929,0.26341424,698.18,697.11,0.892]
[1736909777728,1.06239535,698.15,697.11,0.892]
[1736909780428,1.06239535,698.14,697.11,0.892]
[1736909781533,1.06239535,698.13,697.11,0.892]
[1736909782035,0.26342325,698.12,697.11,0.892]
[1736909782332,0.26342393,698.11,697.11,0.892]
[1736909782628,1.06239535,698.1,697.11,0.892]
[1736909784033,0.26342704,698.09,697.11,0.892]
[1736909784835,1.06239535,698.07,697.11,0.892]
[1736909785430,1.06239535,698.12,697.11,0.892]
[1736909786337,1.06239535,698.13,697.11,0.892]
[1736909787536,1.06239535,698.18,697.11,0.892]
[1736909788231,1.34885032,698.19,697.11,0.892]
[1736909789838,1.06239535,698.18,697.11,0.892]
[1736909790635,0.28645497,698.19,697.11,0.892]
[1736909794943,1.06239535,698.17,697.11,0.892]
[1736909795942,1.06239535,698.18,697.11,0.892]
[1736909797144,1.06239535,698.17,697.11,0.892]
[1736909798142,0.28645497,698.19,697.11,0.892]
[1736909798143,1.06239535,698.18,697.11,0.892]
[1736909800146,1.34885032,698.19,697.11,0.892]
[1736909801144,1.06239535,698.14,697.11,0.892]
[1736909802150,1.06239535,698.13,697.11,0.892]
[1736909803150,1.06239535,698.14,697.11,0.892]
[1736909804253,0.28645497,698.19,697.11,0.892]
[1736909832478,1.06239535,698.82,697.11,0.892]
[1736909832781,1.06239535,698.75,697.11,0.892]
[1736909833172,0.28623359,698.73,697.11,0.892]
[1736909836380,1.06239535,698.7,697.11,0.892]
[1736909836576,0.28624998,698.69,697.11,0.892]
[1736909837279,1.06239535,698.67,697.11,0.892]
[1736909837580,0.28626227,698.66,697.11,0.892]
[1736909838382,0.26334702,698.65,697.11,0.892]
[1736909838581,0.28627046,698.64,697.11,0.892]
[1736909838777,0.26334702,698.63,697.11,0.892]
[1736909838978,0.28627866,698.62,697.11,0.892]
[1736909839180,1.06239535,698.44,697.11,0.892]
[1736909841382,1.06239535,698.46,697.11,0.892]
[1736909842482,1.06239535,698.43,697.11,0.892]
[1736909843485,0.28627866,698.62,697.11,0.892]
[1736909843486,1.06239535,698.44,697.12,0.28689465]
[1736909844485,1.06239535,698.34,697.16,1.07143565]
[1736909844784,1.06239535,698.34,697.16,2.10543565]
[1736909845584,1.06239535,698.44,697.17,0.28687407]
[1736909846986,1.06239535,698.52,697.17,0.28687407]
[1736909849686,1.06239535,698.53,697.17,0.28687407]
[1736909851086,1.06239535,698.54,697.17,0.28687407]
[1736909852587,1.06239535,698.56,697.17,0.28687407]
[1736909853781,1.06239535,698.55,697.17,0.28687407]
[1736909855089,0.26330479,698.54,697.17,0.28687407]
[1736909855888,1.06239535,698.51,697.17,0.28687407]
[1736909857183,0.26330405,698.5,697.17,0.28687407]
[1736909857387,1.06239535,698.51,697.17,0.28687407]
[1736909857587,0.26330442,698.5,697.17,0.28687407]
[1736909857789,1.06239535,698.5,697.17,0.28687407]
[1736909858387,0.26330349,698.49,697.17,0.28687407]
[1736909858785,0.26330349,698.49,697.17,1.35830972]
[1736909859488,0.26330319,698.48,697.17,1.35830972]
[1736909859686,0.26330319,698.47,697.17,1.35830972]
[1736909859889,0.28627866,698.62,697.17,1.35830972]
[1736909859890,1.32569854,698.46,697.24,1.07143565]
[1736909860094,0.26330369,698.45,697.24,1.07143565]
[1736909861387,1.32569904,698.45,697.23,1.07143565]
[1736909861595,0.26330369,698.44,697.23,1.07143565]
[1736909862293,1.06239535,698.43,697.25,1.07143565]
[1736909863192,1.34867401,698.62,697.17,1.35830972]
[1736909863193,1.06239535,698.44,697.26,1.07143565]
[1736909864197,1.06239535,698.54,697.17,0.28687407]
[1736909866596,0.28627866,698.62,697.17,0.28687407]
[1736909866597,1.06239535,698.55,697.17,0.28687407]
[1736909867694,0.26329989,698.54,697.17,0.28687407]
[1736909867898,1.06239535,698.55,697.17,0.28687407]
[1736909868998,1.06239535,698.52,697.17,0.28687407]
[1736909870996,0.28627866,698.62,697.17,0.28687407]
[1736909870997,1.06239535,698.49,697.17,0.28687407]
[1736909872198,1.06239535,698.48,697.17,0.28687407]
[1736909872693,0.26329915,698.47,697.17,0.28687407]
[1736909873695,0.26329915,698.46,697.17,0.28687407]
[1736909873897,0.26329915,698.45,697.17,0.28687407]
[1736909874100,0.26329832,698.44,697.17,0.28687407]
[1736909874394,0.28627866,698.62,697.17,0.28687407]
[1736909874598,0.26329785,698.61,697.17,0.28687407]
[1736909874997,0.26329785,698.61,697.17,1.24287407]
[1736909875201,1.06601156,698.4,697.29,1.07276141]
[1736909876194,1.06601156,698.4,697.2,1.07276141]
[1736909876195,1.06601156,698.4,697.23,1.07276141]
[1736909876397,1.06601156,698.44,697.23,1.07276141]
[1736909877401,1.06601156,698.43,697.24,1.07276141]
[1736909878700,1.06601156,698.41,697.25,1.07276141]
[1736909879800,0.28627866,698.62,697.17,1.24287407]
[1736909879801,1.06601156,698.43,697.28,1.07276141]
[1736909880802,1.06601156,698.42,697.29,1.07276141]
[1736909883302,0.28627866,698.62,697.17,1.24287407]
[1736909883303,1.06601156,698.39,697.27,1.07276141]
[1736909884102,1.35229022,698.62,697.17,1.24287407]
[1736909886305,0.28627866,698.62,697.17,1.24287407]
[1736909888705,1.06601156,698.61,697.17,1.24287407]
[1736909889705,0.28627866,698.62,697.17,1.24287407]
[1736909890705,1.06601156,698.52,697.29,1.07276141]
[1736909891408,1.06601156,698.52,697.3,0.28682059]
[1736909892106,1.06601156,698.56,697.3,0.28682059]
[1736909892608,1.06601156,698.55,697.3,0.28682059]
[1736909894008,1.06601156,698.54,697.3,0.28682059]
[1736909895412,1.06601156,698.58,697.3,0.28682059]
[1736909896622,1.06601156,698.57,697.3,0.28682059]
[1736909897520,1.06601156,698.56,697.3,0.28682059]
[1736909899221,1.06601156,698.61,697.3,1.49982059]
[1736909900223,1.06601156,698.6,697.3,1.49982059]
[1736909901324,1.06601156,698.53,697.3,1.49982059]
[1736909904625,0.28627866,698.62,697.3,1.49982059]
[1736909904626,1.06601156,698.55,697.3,1.49982059]
[1736909905723,1.06601156,698.49,697.3,1.49982059]
[1736909907223,0.28627866,698.62,697.3,1.49982059]
[1736909907224,1.06601156,698.47,697.3,1.49982059]
[1736909908123,1.06601156,698.48,697.3,1.49982059]
[1736909909320,1.06601156,698.47,697.3,1.49982059]
[1736909910725,1.06601156,698.46,697.3,1.49982059]
[1736909911828,1.06601156,698.47,697.3,1.49982059]
[1736909914431,1.06601156,698.41,697.3,1.49982059]
[1736909915330,1.06601156,698.4,697.3,1.49982059]
[1736909918134,1.06601156,698.4,697.31,1.07276141]
[1736909918930,1.06601156,698.46,697.3,1.49982059]
[1736909919628,0.28627866,698.62,697.3,1.49982059]
[1736909919629,1.06601156,698.42,697.3,1.49982059]
[1736909921033,1.06601156,698.41,697.3,1.49982059]
[1736909921229,0.26334567,698.4,697.3,1.49982059]
[1736909922234,1.06601156,698.36,697.3,1.49982059]
[1736909923335,1.06601156,698.38,697.3,1.49982059]
[1736909925329,0.26336544,698.37,697.3,1.49982059]
[1736909925532,1.06601156,698.38,697.3,1.49982059]
[1736909926434,1.06601156,698.39,697.3,1.49982059]
[1736909927633,1.06601156,698.4,697.3,1.49982059]
[1736909928035,0.26337001,698.39,697.3,1.49982059]
[1736909928831,1.06601156,698.39,697.3,1.49982059]
[1736909929036,0.26336867,698.38,697.3,1.49982059]
[1736909931143,1.06601156,698.4,697.3,1.49982059]
[1736909931441,0.26336439,698.39,697.3,1.49982059]
[1736909932038,1.06601156,698.42,697.3,1.49982059]
[1736909932238,0.26336675,698.41,697.3,1.49982059]
[1736909933641,1.06601156,698.42,697.3,1.49982059]
[1736909933841,0.263366,698.41,697.3,1.49982059]
[1736909934041,1.06601156,698.44,697.3,1.49982059]
[1736909934242,0.26336346,698.43,697.3,1.49982059]
[1736909935845,0.28636064,698.42,697.3,1.213]
[1736909948051,0.26337792,698.41,697.3,1.213]
[1736909949252,0.28636064,698.42,697.3,1.213]
[1736909949452,1.06601156,698.39,697.3,1.213]
[1736909949653,0.26337576,698.38,697.3,1.213]
[1736909950654,1.32938732,698.38,697.3,1.213]
[1736909950856,0.26337576,698.37,697.3,1.213]
[1736909951451,1.06601156,698.36,697.3,1.213]
[1736909951655,0.26337576,698.35,697.3,1.213]
[1736909952351,1.06601156,698.33,697.3,1.213]
[1736909954358,1.06601156,698.31,697.3,1.213]
[1736909955159,1.06601156,698.35,697.3,1.213]
[1736909956258,1.06601156,698.33,697.3,1.213]
[1736909957255,1.06601156,698.32,697.3,1.213]
[1736909960160,0.28636064,698.42,697.3,1.213]
[1736909960161,1.06601156,698.31,697.3,1.213]
[1736909966265,1.06601156,698.29,697.3,1.213]
[1736909967467,1.06601156,698.31,697.3,1.213]
[1736909968472,1.06601156,698.3,697.3,1.213]
[1736909969265,1.06601156,698.41,697.3,1.213]
[1736909970268,1.06601156,698.39,697.3,1.213]
[1736909970469,0.28637704,698.38,697.3,1.213]
[1736909970971,1.06601156,698.36,697.3,1.213]
[1736909972072,1.06601156,698.26,697.3,1.213]
[1736909974075,1.06601156,698.25,697.3,1.213]
[1736909974971,1.06601156,698.19,697.3,1.213]
[1736909976078,1.06601156,698.37,697.3,1.213]
[1736909976272,0.28638524,698.36,697.3,1.213]
[1736909980581,1.3523968,698.36,697.3,1.213]
[1736909981784,0.28638524,698.36,697.3,1.213]
[1736909983385,0.26345799,698.35,697.3,1.213]
[1736909985089,1.06601156,698.14,697.3,1.213]
[1736909986083,1.06601156,698.26,697.3,1.213]
[1736909986488,0.28643036,698.25,697.3,1.213]
[1736909988288,0.26347239,698.24,697.3,1.213]
[1736909989888,1.06601156,698.19,697.3,1.213]
[1736909990085,0.26347239,698.18,697.3,1.213]
[1736909990395,1.06601156,698.19,697.3,1.213]
[1736909990585,0.26353939,698.18,697.3,1.213]
[1736909991293,0.26353939,698.17,697.3,1.213]
[1736909991492,0.26353939,698.16,697.3,1.213]
[1736909991690,0.26353939,698.15,697.3,1.213]
[1736909991890,0.26353939,698.14,697.3,1.213]
[1736909992091,1.06601156,697.93,697.3,1.213]
[1736909992591,0.26358121,697.92,697.3,1.213]
[1736909993291,0.26359092,697.91,697.3,1.213]
[1736909993489,0.26359092,697.9,697.3,1.213]
[1736909993686,0.26359092,697.89,697.3,1.213]
[1736909993891,1.06601156,697.99,697.3,1.213]
[1736909994095,0.26362573,697.98,697.3,1.213]
[1736909995191,1.06601156,697.95,697.3,1.213]
[1736909995391,0.26362573,697.94,697.3,1.213]
[1736909996093,0.26368301,697.93,697.3,1.213]
[1736909996295,0.26368301,697.92,697.3,1.213]
[1736909996501,0.26368301,697.91,697.3,1.213]
[1736909996798,0.26368301,697.9,697.3,1.213]
[1736909997000,0.26368301,697.89,697.3,1.213]
[1736909997201,0.26368301,697.88,697.3,1.213]
[1736909997502,0.26368301,697.87,697.3,1.213]
[1736909997800,0.26368301,697.86,697.3,1.213]
[1736909998001,0.55027755,697.85,697.3,1.213]
[1736909998301,0.26368301,697.84,697.3,1.213]
[1736909998502,0.28659454,697.85,697.3,1.213]
[1736909998701,0.26368261,697.84,697.3,1.213]
[1736909998894,0.28660275,697.83,697.3,1.213]
[1736909999099,0.26368261,697.82,697.3,1.213]
[1736909999297,0.28661096,697.81,697.3,1.213]
[1736909999502,0.26368261,697.8,697.3,1.213]
[1736909999702,0.28661918,697.79,697.3,1.213]
[1736910000001,0.26368261,697.78,697.3,1.213]
[1736910000401,0.28662739,697.77,697.3,1.213]
[1736910000601,0.26368261,697.76,697.3,1.213]
[1736910001396,0.28663561,697.75,697.3,1.213]
[1736910001601,0.26368261,697.74,697.3,1.213]
[1736910001801,0.26366652,697.73,697.3,1.213]
[1736910001998,0.26366652,697.72,697.3,1.213]
[1736910002203,0.26366652,697.71,697.3,1.213]
[1736910002505,0.26366652,697.7,697.3,1.213]
[1736910002706,0.26366652,697.69,697.3,1.213]
[1736910002905,0.26366652,697.68,697.3,1.213]
[1736910003100,0.26366652,697.67,697.3,1.213]
[1736910003305,0.26365711,697.66,697.3,1.213]
[1736910003505,0.26365711,697.65,697.3,1.213]
[1736910003705,0.26365711,697.64,697.3,1.213]
[1736910003903,0.26365711,697.63,697.3,1.213]
[1736910004108,0.26365711,697.62,697.3,1.213]
[1736910004310,0.26365711,697.61,697.3,1.213]
[1736910004608,0.26365711,697.6,697.3,1.213]
[1736910004811,0.26365711,697.59,697.3,1.213]
[1736910005108,0.26365711,697.58,697.3,1.213]
[1736910005303,0.26365711,697.57,697.3,1.213]
[1736910005501,0.26365711,697.56,697.3,1.213]
[1736910005705,0.26365711,697.55,697.3,1.213]
[1736910005901,0.28664383,697.73,697.3,1.213]
[1736910006106,0.26366215,697.72,697.3,1.213]
[1736910006303,0.28665204,697.71,697.3,1.213]
[1736910006608,0.26366215,697.7,697.3,1.213]
[1736910006811,0.28666026,697.69,697.3,1.213]
[1736910007010,0.26366215,697.68,697.3,1.213]
[1736910007511,0.28666848,697.67,697.3,1.213]
[1736910007712,0.26366215,697.66,697.3,1.213]
[1736910008713,0.26364981,697.65,697.3,1.213]
[1736910008911,0.26364981,697.64,697.3,1.213]
[1736910009112,0.26364981,697.66,697.3,1.213]
[1736910009412,0.28666848,697.67,697.3,1.213]
[1736910009413,0.26364981,697.63,697.3,1.213]
[1736910009711,0.26365446,697.62,697.3,1.213]
[1736910010006,0.26365446,697.61,697.3,1.213]
[1736910010210,0.26365446,697.6,697.3,1.213]
[1736910010410,0.26365446,697.59,697.3,1.213]
[1736910010612,0.26365446,697.58,697.3,1.213]
[1736910010812,0.26365446,697.57,697.3,1.213]
[1736910011012,0.26365446,697.56,697.3,1.213]
[1736910011213,0.26365446,697.55,697.3,1.213]
[1736910011406,0.28666848,697.67,697.3,1.213]
[1736910011607,0.26366456,697.66,697.3,1.213]
[1736910014010,0.28666848,697.67,697.3,1.213]
[1736910014215,0.2636639,697.66,697.3,1.213]
[1736910016714,0.28666848,697.67,697.3,1.213]
[1736910016916,0.26365651,697.66,697.3,1.213]
[1736910021519,0.26363829,697.65,697.3,1.213]
[1736910021723,0.26363829,697.64,697.3,1.213]
[1736910021921,0.26363829,697.63,697.3,1.213]
[1736910022114,0.28666848,697.67,697.3,1.213]
[1736910022416,0.26365784,697.66,697.3,1.213]
[1736910024120,0.28666848,697.67,697.3,1.213]
[1736910024622,0.26364961,697.66,697.3,1.213]
[1736910024920,0.28666848,697.67,697.3,1.213]
[1736910026618,1.35268004,697.67,697.3,1.213]
[1736910028127,1.06601156,697.65,697.3,1.213]
[1736910028327,0.26361781,697.64,697.3,1.213]
[1736910029127,1.06601156,697.65,697.3,1.213]
[1736910029429,1.06601156,697.53,697.3,1.213]
[1736910030622,0.28666848,697.67,697.3,1.213]
[1736910032427,1.06601156,697.73,697.3,1.213]
[1736910032825,1.06601156,697.88,697.3,1.213]
[1736910034133,1.06601156,697.96,697.3,1.213]
[1736910034334,0.26352105,697.95,697.3,1.213]
[1736910035427,0.26352105,697.94,697.3,1.213]
[1736910035631,1.06601156,698.03,697.3,1.213]
[1736910035831,0.26350903,698.02,697.3,1.213]
[1736910036434,0.26350903,698.01,697.3,1.213]
[1736910036731,0.26350903,698.0,697.3,1.213]
[1736910036934,0.26350903,697.99,697.3,1.213]
[1736910037136,1.06601156,698.13,697.3,1.213]
[1736910037336,0.55000718,698.12,697.3,1.213]
[1736910037631,0.55001129,698.11,697.3,1.213]
[1736910037935,0.55001539,698.1,697.3,1.213]
[1736910038132,0.5500195,698.09,697.3,1.213]
[1736910038332,0.5500236,698.08,697.3,1.213]
[1736910038535,0.5500277,698.07,697.3,1.213]
[1736910038729,0.26352349,698.06,697.3,1.213]
[1736910039337,0.28651242,698.05,697.3,1.213]
[1736910039829,0.2635066,698.04,697.3,1.213]
[1736910040030,0.28651242,698.05,697.3,1.213]
[1736910043340,0.26351338,698.04,697.3,1.213]
[1736910043537,0.28651242,698.05,697.3,1.213]
[1736910044138,0.26351917,698.04,697.3,1.213]
[1736910044333,0.26351952,698.03,697.3,1.213]
[1736910044640,0.26351952,698.02,697.3,1.213]
[1736910044938,0.26351952,698.01,697.3,1.213]
[1736910045138,0.26351952,698.0,697.3,1.213]
[1736910045339,0.26351952,697.99,697.3,1.213]
[1736910045636,0.26351952,697.98,697.3,1.213]
[1736910045840,0.26351952,697.97,697.3,1.213]
[1736910046038,0.28651242,698.05,697.3,1.213]
[1736910046239,0.28654526,697.97,697.3,1.213]
[1736910046439,0.26353902,697.96,697.3,1.213]
[1736910046839,0.26353902,697.95,697.3,1.213]
[1736910047139,0.26353902,697.94,697.3,1.213]
[1736910047336,0.26353902,697.93,697.3,1.213]
[1736910047643,0.26353902,697.92,697.3,1.213]
[1736910047940,0.28654526,697.97,697.3,1.213]
[1736910048241,0.26354263,697.96,697.3,1.213]
[1736910049440,0.28654526,697.97,697.3,1.213]
[1736910049646,0.26353038,697.96,697.3,1.213]
[1736910050237,0.28654526,697.97,697.3,1.213]
[1736910050436,0.26352413,697.96,697.3,1.213]
[1736910050635,0.28654526,697.97,697.3,1.213]
[1736910051436,0.26350784,697.96,697.3,1.213]
[1736910052143,0.28654526,697.97,697.3,1.213]
[1736910067845,1.06601156,697.93,697.3,1.213]
[1736910069755,1.06601156,697.92,697.3,1.213]
[1736910071853,1.06601156,697.93,697.3,1.213]
[1736910072757,0.28654526,697.97,697.3,1.213]
[1736910080464,1.06601156,698.16,697.3,1.213]
[1736910081267,1.06601156,698.44,697.3,1.213]
[1736910081565,0.28635654,698.43,697.3,1.213]
[1736910087567,0.26342627,698.42,697.3,1.213]
[1736910087769,0.28636474,698.41,697.3,1.213]
[1736910092765,0.26342685,698.4,697.3,1.213]
[1736910092969,0.28637294,698.39,697.3,1.213]
[1736910103975,0.26338538,698.38,697.3,1.213]
[1736910105872,0.28637294,698.39,697.3,1.213]
[1736910106278,0.26337708,698.38,697.3,1.213]
[1736910107082,0.28637294,698.39,697.3,1.213]
[1736910107278,0.26337727,698.38,697.3,1.213]
[1736910109080,0.26338668,698.37,697.3,1.213]
[1736910109383,0.26338668,698.36,697.3,1.213]
[1736910109573,0.26338668,698.35,697.3,1.213]
[1736910109773,0.26338668,698.34,697.3,1.213]
[1736910109976,0.26338668,698.33,697.3,1.213]
[1736910110174,1.3523845,698.39,697.3,1.213]
[1736910110379,0.2633935,698.38,697.3,1.213]
[1736910110578,0.28638114,698.37,697.3,1.213]
[1736910110779,0.2633935,698.36,697.3,1.213]
[1736910111774,0.26339502,698.35,697.3,1.213]
[1736910111977,0.26339502,698.34,697.3,1.213]
[1736910112179,0.26339502,698.33,697.3,1.213]
[1736910112880,0.28640164,698.32,697.3,1.213]
[1736910113180,1.32940658,698.31,697.3,1.213]
[1736910113384,0.28640985,698.3,697.3,1.213]
[1736910114179,1.06601156,698.28,697.3,1.213]
[1736910114882,0.26341612,698.27,697.3,1.213]
[1736910115489,0.26341695,698.26,697.3,1.213]
[1736910115688,1.06601156,698.22,697.3,1.213]
[1736910117688,1.06601156,698.28,697.3,1.213]
[1736910118590,1.06601156,698.27,697.3,1.213]
[1736910119784,0.28640985,698.3,697.3,1.213]
[1736910119785,1.35242141,698.3,697.3,1.213]
[1736910122188,1.06601156,698.29,697.3,1.213]
[1736910123394,1.06601156,698.27,697.3,1.213]
[1736910126489,0.26339267,698.26,697.3,1.213]
[1736910126693,1.06601156,698.22,697.3,1.213]
[1736910127494,0.26340572,698.21,697.3,1.213]
[1736910127890,1.06601156,698.22,697.3,1.213]
[1736910128097,1.06601156,698.18,697.3,1.213]
[1736910129397,1.06601156,698.17,697.3,1.213]
[1736910130692,1.06601156,698.14,697.3,1.213]
[1736910131798,1.06601156,698.16,697.3,1.213]
[1736910133898,1.06601156,698.17,697.3,1.213]
[1736910134693,0.28640985,698.3,697.3,1.213]
[1736910137596,1.06601156,698.24,697.3,1.213]
[1736910138194,0.28643856,698.23,697.3,1.213]
[1736910138495,1.35245012,698.23,697.3,1.213]
[1736910139694,0.28643856,698.23,697.3,1.213]
[1736910147207,1.06601156,698.21,697.3,1.213]
[1736910147405,1.06601156,698.19,697.3,1.213]
[1736910149109,1.06601156,698.2,697.3,1.213]
[1736910149503,0.26344217,698.19,697.3,1.213]
[1736910149704,1.06601156,698.18,697.3,1.213]
[1736910152312,0.28643856,698.23,697.3,1.213]
[1736910157319,1.06601156,698.22,697.3,1.213]
[1736910158315,1.06601156,698.21,697.3,1.213]
[1736910159415,0.28643856,698.23,697.3,1.213]
[1736910159416,1.06601156,698.2,697.3,1.213]
[1736910160513,1.06601156,698.22,697.3,1.213]
[1736910161522,1.06601156,698.18,697.3,1.213]
[1736910163519,0.28643856,698.23,697.3,1.213]
[1736910172726,1.06601156,698.21,697.3,1.213]
[1736910174024,1.06601156,698.19,697.3,1.213]
[1736910174927,1.06601156,698.2,697.3,1.213]
[1736910175927,1.06601156,698.22,697.3,1.213]
[1736910176921,1.06601156,698.21,697.3,1.213]